[Event "Early-Titled-Tuesday-Blitz-September-12-2023"]
[Site "Chess.com"]
[Date "2023.09.12"]
[Round "10"]
[White "MathiasWomacka"]
[Black "jraosam"]
[Result "1-0"]
[WhiteElo "2472"]
[BlackElo "2021"]
[TimeControl "180+1"]
[EndTime "9:51:37 PDT"]
[Termination "MathiasWomacka won by resignation"]

1. e4 {[%clk 0:03:00.9]} 1... c5 {[%clk 0:02:43.1]} 2. Nf3 {[%clk 0:03:00.1]}
2... d6 {[%clk 0:02:43.1]} 3. d4 {[%clk 0:03:00.6]} 3... cxd4 {[%clk 0:02:44]}
4. Nxd4 {[%clk 0:03:00.9]} 4... Nf6 {[%clk 0:02:44.2]} 5. Nc3 {[%clk 0:03:01.4]}
5... a6 {[%clk 0:02:44.6]} 6. Be2 {[%clk 0:03:01.4]} 6... e5 {[%clk 0:02:37.7]}
7. Nb3 {[%clk 0:03:01.2]} 7... Be7 {[%clk 0:02:38.4]} 8. O-O {[%clk 0:03:00.7]}
8... O-O {[%clk 0:02:39.1]} 9. Kh1 {[%clk 0:03:01]} 9... Be6 {[%clk 0:02:39.8]}
10. f4 {[%clk 0:02:59.3]} 10... exf4 {[%clk 0:02:39.9]} 11. Bxf4 {[%clk
0:02:58.3]} 11... Nc6 {[%clk 0:02:40.8]} 12. Qe1 {[%clk 0:02:58.2]} 12... Ne5
{[%clk 0:02:40.5]} 13. Rd1 {[%clk 0:02:57.6]} 13... Qc7 {[%clk 0:02:40.2]} 14.
Qg3 {[%clk 0:02:56.9]} 14... Rfd8 {[%clk 0:02:38.2]} 15. Nd4 {[%clk 0:02:55.1]}
15... Bc4 {[%clk 0:02:32.6]} 16. Nf5 {[%clk 0:02:49.3]} 16... Bf8 {[%clk
0:02:31.5]} 17. Bxc4 {[%clk 0:02:33.9]} 17... Qxc4 {[%clk 0:02:28.5]} 18. Bg5
{[%clk 0:02:32.4]} 18... Nxe4 {[%clk 0:02:25.1]} 19. Nxe4 {[%clk 0:02:29.2]}
19... Qxe4 {[%clk 0:02:26]} 20. Bxd8 {[%clk 0:02:27.1]} 20... Rxd8 {[%clk
0:02:26.3]} 21. Nh6+ {[%clk 0:02:22.2]} 21... Kh8 {[%clk 0:02:26.1]} 22. Nxf7+
{[%clk 0:02:19]} 22... Nxf7 {[%clk 0:02:25.7]} 23. Rxf7 {[%clk 0:02:19.6]} 23...
Qxc2 {[%clk 0:02:24.6]} 24. Rdf1 {[%clk 0:02:19.2]} 24... Kg8 {[%clk 0:02:22.8]}
25. Qf3 {[%clk 0:02:16]} 25... Qc8 {[%clk 0:02:17.9]} 26. Qd5 {[%clk 0:02:07.4]}
26... Kh8 {[%clk 0:02:16.9]} 27. Rxb7 {[%clk 0:01:59.5]} 1-0

[Event "Early-Titled-Tuesday-Blitz-September-12-2023"]
[Site "Chess.com"]
[Date "2023.09.12"]
[Round "10"]
[White "Ishowmoves57"]
[Black "Ready4abattle"]
[Result "0-1"]
[WhiteElo "2123"]
[BlackElo "2322"]
[TimeControl "180+1"]
[EndTime "9:51:46 PDT"]
[Termination "Ready4abattle won by resignation"]

1. e4 {[%clk 0:02:58.9]} 1... c5 {[%clk 0:03:00.1]} 2. Nf3 {[%clk 0:02:59.2]}
2... Nc6 {[%clk 0:03:00.3]} 3. b3 {[%clk 0:02:56]} 3... g6 {[%clk 0:02:58.2]} 4.
Bb2 {[%clk 0:02:56.1]} 4... Nf6 {[%clk 0:02:58.6]} 5. e5 {[%clk 0:02:56.7]} 5...
Nd5 {[%clk 0:02:58.9]} 6. e6 {[%clk 0:02:57.1]} 6... f6 {[%clk 0:02:58.9]} 7.
exd7+ {[%clk 0:02:57.5]} 7... Qxd7 {[%clk 0:02:59.8]} 8. Nc3 {[%clk 0:02:56.4]}
8... Bh6 {[%clk 0:02:55.4]} 9. Nxd5 {[%clk 0:02:52.4]} 9... Qxd5 {[%clk
0:02:54.4]} 10. Bc4 {[%clk 0:02:53.1]} 10... Qe4+ {[%clk 0:02:51.8]} 11. Be2
{[%clk 0:02:43.1]} 11... Bf5 {[%clk 0:02:40.4]} 12. O-O {[%clk 0:02:34.7]} 12...
Qxc2 {[%clk 0:02:24.7]} 13. Qxc2 {[%clk 0:02:33.3]} 13... Bxc2 {[%clk
0:02:25.6]} 14. Rac1 {[%clk 0:02:33.5]} 14... Be4 {[%clk 0:02:23.7]} 15. Rxc5
{[%clk 0:02:33.2]} 15... Rd8 {[%clk 0:02:19.7]} 16. d4 {[%clk 0:02:17.2]} 16...
O-O {[%clk 0:01:59.6]} 17. Nd2 {[%clk 0:01:44.2]} 17... Bxd2 {[%clk 0:01:54.8]}
0-1

[Event "Early-Titled-Tuesday-Blitz-September-12-2023"]
[Site "Chess.com"]
[Date "2023.09.12"]
[Round "10"]
[White "dadice10"]
[Black "zverr1"]
[Result "1-0"]
[WhiteElo "2250"]
[BlackElo "2468"]
[TimeControl "180+1"]
[EndTime "9:51:55 PDT"]
[Termination "dadice10 won by checkmate"]

1. e4 {[%clk 0:03:00.9]} 1... c5 {[%clk 0:02:59]} 2. Nc3 {[%clk 0:02:59.2]} 2...
Nc6 {[%clk 0:02:58.7]} 3. Bb5 {[%clk 0:02:58.4]} 3... Nd4 {[%clk 0:02:58.5]} 4.
Bc4 {[%clk 0:02:57.9]} 4... e6 {[%clk 0:02:57.4]} 5. Nge2 {[%clk 0:02:57.8]}
5... a6 {[%clk 0:02:56.7]} 6. d3 {[%clk 0:02:56.9]} 6... b5 {[%clk 0:02:56.3]}
7. Bb3 {[%clk 0:02:56.9]} 7... Be7 {[%clk 0:02:42.2]} 8. Nxd4 {[%clk 0:02:54.1]}
8... cxd4 {[%clk 0:02:42.2]} 9. Ne2 {[%clk 0:02:54.4]} 9... Qb6 {[%clk
0:02:31.8]} 10. O-O {[%clk 0:02:53.5]} 10... d6 {[%clk 0:02:31.8]} 11. Ng3
{[%clk 0:02:50.6]} 11... Nf6 {[%clk 0:02:31.4]} 12. f4 {[%clk 0:02:47.9]} 12...
Bb7 {[%clk 0:02:24]} 13. f5 {[%clk 0:02:46.6]} 13... e5 {[%clk 0:02:21.1]} 14.
Bg5 {[%clk 0:02:42.5]} 14... Qc5 {[%clk 0:01:58]} 15. Bxf6 {[%clk 0:02:37.4]}
15... Bxf6 {[%clk 0:01:58.9]} 16. Nh5 {[%clk 0:02:36]} 16... Bg5 {[%clk
0:01:52]} 17. Nxg7+ {[%clk 0:02:28.6]} 17... Kf8 {[%clk 0:01:47.4]} 18. Qh5
{[%clk 0:02:20.3]} 18... Be3+ {[%clk 0:01:38.4]} 19. Kh1 {[%clk 0:02:18.9]}
19... d5 {[%clk 0:01:35]} 20. Ne6+ {[%clk 0:02:18.1]} 20... fxe6 {[%clk
0:01:27.9]} 21. fxe6+ {[%clk 0:02:19]} 21... Ke7 {[%clk 0:01:27]} 22. Qf7+
{[%clk 0:02:16.7]} 22... Kd6 {[%clk 0:01:27.3]} 23. Qd7# {[%clk 0:02:16.4]} 1-0

[Event "Early-Titled-Tuesday-Blitz-September-12-2023"]
[Site "Chess.com"]
[Date "2023.09.12"]
[Round "10"]
[White "El_Matador12"]
[Black "Fleetw00dMac"]
[Result "1-0"]
[WhiteElo "2599"]
[BlackElo "2462"]
[TimeControl "180+1"]
[EndTime "9:52:13 PDT"]
[Termination "El_Matador12 won by resignation"]

1. d4 {[%clk 0:03:00.8]} 1... Nf6 {[%clk 0:02:59.4]} 2. Bg5 {[%clk 0:02:59.6]}
2... d5 {[%clk 0:02:58.5]} 3. Bxf6 {[%clk 0:02:59.3]} 3... exf6 {[%clk
0:02:58.2]} 4. e3 {[%clk 0:02:59.1]} 4... Bd6 {[%clk 0:02:57.8]} 5. g3 {[%clk
0:02:58.7]} 5... c6 {[%clk 0:02:55.1]} 6. Bg2 {[%clk 0:02:59]} 6... f5 {[%clk
0:02:55]} 7. Ne2 {[%clk 0:02:58.4]} 7... Nd7 {[%clk 0:02:54.4]} 8. O-O {[%clk
0:02:57.7]} 8... Nf6 {[%clk 0:02:54.2]} 9. b3 {[%clk 0:02:57.4]} 9... O-O {[%clk
0:02:52.5]} 10. c4 {[%clk 0:02:57.6]} 10... Be6 {[%clk 0:02:43.6]} 11. Qd3
{[%clk 0:02:55.9]} 11... Ne4 {[%clk 0:02:37]} 12. Nbc3 {[%clk 0:02:55.6]} 12...
g6 {[%clk 0:02:28.8]} 13. cxd5 {[%clk 0:02:54.8]} 13... cxd5 {[%clk 0:02:28]}
14. Rfc1 {[%clk 0:02:52.4]} 14... a6 {[%clk 0:02:24.9]} 15. Na4 {[%clk
0:02:44.3]} 15... Rc8 {[%clk 0:02:16.3]} 16. Rxc8 {[%clk 0:02:43.3]} 16... Qxc8
{[%clk 0:02:15]} 17. Rc1 {[%clk 0:02:43.7]} 17... Qd8 {[%clk 0:02:11.6]} 18. Nc5
{[%clk 0:02:43.2]} 18... Bc8 {[%clk 0:02:11.6]} 19. b4 {[%clk 0:02:41.7]} 19...
a5 {[%clk 0:01:33.4]} 20. b5 {[%clk 0:02:39.4]} 20... b6 {[%clk 0:01:32.7]} 21.
Na4 {[%clk 0:02:34.3]} 21... Bd7 {[%clk 0:01:29.2]} 22. Qb3 {[%clk 0:02:25]}
22... Qa8 {[%clk 0:01:12.5]} 23. Nxb6 {[%clk 0:02:22.2]} 1-0

[Event "Early-Titled-Tuesday-Blitz-September-12-2023"]
[Site "Chess.com"]
[Date "2023.09.12"]
[Round "10"]
[White "Leonid_Starozhilov"]
[Black "hellokostya"]
[Result "1/2-1/2"]
[WhiteElo "2778"]
[BlackElo "2623"]
[TimeControl "180+1"]
[EndTime "9:52:18 PDT"]
[Termination "Game drawn by agreement"]

1. e4 {[%clk 0:03:00.9]} 1... c5 {[%clk 0:02:59.2]} 2. Nf3 {[%clk 0:03:01]} 2...
Nc6 {[%clk 0:02:59.5]} 3. Bb5 {[%clk 0:03:00.8]} 3... g6 {[%clk 0:02:59.6]} 4.
O-O {[%clk 0:03:00.9]} 4... Bg7 {[%clk 0:02:59.6]} 5. Nc3 {[%clk 0:03:01.2]}
5... Nf6 {[%clk 0:02:59.2]} 6. Bxc6 {[%clk 0:03:00.4]} 6... dxc6 {[%clk
0:02:59.3]} 7. d3 {[%clk 0:03:00.1]} 7... Nd7 {[%clk 0:02:58.4]} 8. Be3 {[%clk
0:02:59.4]} 8... b6 {[%clk 0:02:57.5]} 9. Qd2 {[%clk 0:02:55.8]} 9... e5 {[%clk
0:02:56.5]} 10. Bh6 {[%clk 0:02:55.1]} 10... O-O {[%clk 0:02:55.4]} 11. h3
{[%clk 0:02:52]} 11... f6 {[%clk 0:02:53.7]} 12. Nh2 {[%clk 0:02:43.5]} 12...
Qe7 {[%clk 0:02:53.3]} 13. Bxg7 {[%clk 0:02:43.1]} 13... Qxg7 {[%clk 0:02:53.5]}
14. f4 {[%clk 0:02:43.8]} 14... exf4 {[%clk 0:02:49]} 15. Rxf4 {[%clk
0:02:37.7]} 15... Ne5 {[%clk 0:02:49.2]} 16. Raf1 {[%clk 0:02:32.8]} 16... Be6
{[%clk 0:02:49.3]} 17. b3 {[%clk 0:02:27.9]} 17... Rad8 {[%clk 0:02:49]} 18. Qe3
{[%clk 0:02:26.5]} 18... Rd7 {[%clk 0:02:46.2]} 19. R4f2 {[%clk 0:02:25.1]}
19... Rdf7 {[%clk 0:02:43.6]} 20. Nf3 {[%clk 0:02:24.4]} 20... Nxf3+ {[%clk
0:02:43]} 21. Rxf3 {[%clk 0:02:23.2]} 21... f5 {[%clk 0:02:43.2]} 22. exf5
{[%clk 0:02:03.7]} 22... Bxf5 {[%clk 0:02:44.1]} 23. Ne4 {[%clk 0:01:59]} 23...
Bxe4 {[%clk 0:02:35]} 24. Qxe4 {[%clk 0:01:31.1]} 24... Rxf3 {[%clk 0:02:28.6]}
25. Rxf3 {[%clk 0:01:32]} 25... Rxf3 {[%clk 0:02:26.7]} 26. gxf3 {[%clk
0:01:11.7]} 1/2-1/2

[Event "Early-Titled-Tuesday-Blitz-September-12-2023"]
[Site "Chess.com"]
[Date "2023.09.12"]
[Round "10"]
[White "GianmarcoVaR"]
[Black "nihalsarin"]
[Result "0-1"]
[WhiteElo "2660"]
[BlackElo "3100"]
[TimeControl "180+1"]
[EndTime "9:52:20 PDT"]
[Termination "nihalsarin won by resignation"]

1. e4 {[%clk 0:02:55.6]} 1... a6 {[%clk 0:03:00.9]} 2. d4 {[%clk 0:02:52.2]}
2... c6 {[%clk 0:03:01.3]} 3. Bd3 {[%clk 0:02:47.9]} 3... d5 {[%clk 0:03:01.8]}
4. Nf3 {[%clk 0:02:45.1]} 4... Bg4 {[%clk 0:03:01.7]} 5. Nbd2 {[%clk 0:02:42.9]}
5... e6 {[%clk 0:03:01.7]} 6. O-O {[%clk 0:02:41.2]} 6... Nd7 {[%clk 0:03:02.1]}
7. Re1 {[%clk 0:02:40.6]} 7... Ngf6 {[%clk 0:03:02.7]} 8. e5 {[%clk 0:02:40]}
8... Ng8 {[%clk 0:03:03.2]} 9. c3 {[%clk 0:02:33.1]} 9... Ne7 {[%clk 0:03:03.6]}
10. Nf1 {[%clk 0:02:32.9]} 10... Bh5 {[%clk 0:03:04.1]} 11. a4 {[%clk
0:02:24.8]} 11... c5 {[%clk 0:03:04.4]} 12. Bg5 {[%clk 0:02:17.5]} 12... Qc7
{[%clk 0:03:04.5]} 13. Ng3 {[%clk 0:02:14.2]} 13... Bg6 {[%clk 0:03:05.2]} 14.
b4 {[%clk 0:01:57.5]} 14... cxd4 {[%clk 0:03:02.9]} 15. cxd4 {[%clk 0:01:57.9]}
15... Nc6 {[%clk 0:03:03.2]} 16. Bxg6 {[%clk 0:01:55.7]} 16... hxg6 {[%clk
0:03:04.1]} 17. b5 {[%clk 0:01:55.7]} 17... Na5 {[%clk 0:03:04.8]} 18. Rc1
{[%clk 0:01:49.2]} 18... Nc4 {[%clk 0:03:04.5]} 19. Nd2 {[%clk 0:01:29.3]} 19...
axb5 {[%clk 0:03:04.8]} 20. axb5 {[%clk 0:01:28]} 20... Ndb6 {[%clk 0:03:05.5]}
21. Qb3 {[%clk 0:01:22.5]} 21... Ra3 {[%clk 0:03:04.9]} 22. Qb1 {[%clk
0:01:19.5]} 22... Be7 {[%clk 0:03:05.6]} 23. Bxe7 {[%clk 0:01:12.4]} 23... Qxe7
{[%clk 0:03:06.5]} 24. Nf3 {[%clk 0:01:00.8]} 24... Rxf3 {[%clk 0:03:05.6]} 25.
gxf3 {[%clk 0:01:01.1]} 25... Qh4 {[%clk 0:03:06.5]} 26. Qd3 {[%clk 0:00:56.4]}
26... Qxh2+ {[%clk 0:03:06.7]} 27. Kf1 {[%clk 0:00:57]} 27... Qh4 {[%clk
0:03:07.1]} 28. Kg2 {[%clk 0:00:54.2]} 28... Qf4 {[%clk 0:03:07.7]} 29. Rh1
{[%clk 0:00:52.7]} 29... Rf8 {[%clk 0:03:08]} 30. Rh7 {[%clk 0:00:50.3]} 30...
Qxc1 {[%clk 0:03:07.9]} 31. Rxg7 {[%clk 0:00:50]} 31... Qh6 {[%clk 0:03:08.5]}
0-1

[Event "Early-Titled-Tuesday-Blitz-September-12-2023"]
[Site "Chess.com"]
[Date "2023.09.12"]
[Round "10"]
[White "Nekoo04"]
[Black "sqmorr"]
[Result "0-1"]
[WhiteElo "2260"]
[BlackElo "2217"]
[TimeControl "180+1"]
[EndTime "9:52:36 PDT"]
[Termination "sqmorr won by resignation"]

1. d4 {[%clk 0:02:56.6]} 1... Nf6 {[%clk 0:02:59.1]} 2. c4 {[%clk 0:02:56.4]}
2... e6 {[%clk 0:02:58.9]} 3. Nf3 {[%clk 0:02:56.1]} 3... b6 {[%clk 0:02:58.6]}
4. g3 {[%clk 0:02:56.3]} 4... Ba6 {[%clk 0:02:57.7]} 5. b3 {[%clk 0:02:53.2]}
5... Bb4+ {[%clk 0:02:56.2]} 6. Bd2 {[%clk 0:02:47.6]} 6... Be7 {[%clk
0:02:55.5]} 7. Bg2 {[%clk 0:02:47.5]} 7... O-O {[%clk 0:02:49.7]} 8. Nc3 {[%clk
0:02:45.1]} 8... d5 {[%clk 0:02:47.8]} 9. cxd5 {[%clk 0:02:26.5]} 9... exd5
{[%clk 0:02:46.9]} 10. O-O {[%clk 0:02:25.7]} 10... Re8 {[%clk 0:02:42]} 11. Bg5
{[%clk 0:02:23.5]} 11... h6 {[%clk 0:02:29.2]} 12. Bxf6 {[%clk 0:02:10]} 12...
Bxf6 {[%clk 0:02:28.5]} 13. Nxd5 {[%clk 0:02:04.8]} 13... Bxe2 {[%clk
0:02:23.5]} 14. Nxf6+ {[%clk 0:01:47.5]} 14... Qxf6 {[%clk 0:02:20.4]} 15. Qe1
{[%clk 0:01:43.7]} 15... Nd7 {[%clk 0:02:12.7]} 16. Ne5 {[%clk 0:01:38.6]} 16...
Nxe5 {[%clk 0:02:03.6]} 17. Bxa8 {[%clk 0:01:21.2]} 17... Nf3+ {[%clk
0:01:57.6]} 18. Kh1 {[%clk 0:01:06.2]} 18... Nxe1 {[%clk 0:01:55.4]} 0-1

[Event "Early-Titled-Tuesday-Blitz-September-12-2023"]
[Site "Chess.com"]
[Date "2023.09.12"]
[Round "10"]
[White "NicolaiMaxime"]
[Black "itsdsyr"]
[Result "1-0"]
[WhiteElo "2559"]
[BlackElo "2244"]
[TimeControl "180+1"]
[EndTime "9:52:52 PDT"]
[Termination "NicolaiMaxime won by resignation"]

1. e4 {[%clk 0:02:59.7]} 1... e5 {[%clk 0:03:00.1]} 2. Nf3 {[%clk 0:02:59.3]}
2... Nc6 {[%clk 0:03:00.3]} 3. Nc3 {[%clk 0:03:00.1]} 3... Nf6 {[%clk
0:03:00.3]} 4. a3 {[%clk 0:03:00.7]} 4... a6 {[%clk 0:02:53.7]} 5. d4 {[%clk
0:02:59.5]} 5... exd4 {[%clk 0:02:52.1]} 6. Nxd4 {[%clk 0:03:00.4]} 6... Bc5
{[%clk 0:02:47.4]} 7. Be3 {[%clk 0:02:58]} 7... Ba7 {[%clk 0:02:36.9]} 8. Nxc6
{[%clk 0:02:54.1]} 8... bxc6 {[%clk 0:02:36.1]} 9. Bxa7 {[%clk 0:02:53.4]} 9...
Rxa7 {[%clk 0:02:35.9]} 10. e5 {[%clk 0:02:52.5]} 10... Nd5 {[%clk 0:02:17.6]}
11. Nxd5 {[%clk 0:02:51.1]} 11... cxd5 {[%clk 0:02:18.5]} 12. Qxd5 {[%clk
0:02:52]} 12... O-O {[%clk 0:02:18.7]} 13. Bd3 {[%clk 0:02:51]} 13... Bb7 {[%clk
0:02:15.2]} 14. Qd4 {[%clk 0:02:50.2]} 14... Ra8 {[%clk 0:02:11.7]} 15. O-O-O
{[%clk 0:02:50.3]} 15... Bc6 {[%clk 0:02:09.4]} 16. h4 {[%clk 0:02:48.3]} 16...
Qc8 {[%clk 0:02:07.3]} 17. h5 {[%clk 0:02:47.5]} 17... Qb7 {[%clk 0:02:06.7]}
18. h6 {[%clk 0:02:45.7]} 18... g6 {[%clk 0:01:59]} 19. e6 {[%clk 0:02:30.9]}
19... f6 {[%clk 0:01:50.8]} 20. e7 {[%clk 0:02:30.7]} 20... Rf7 {[%clk
0:01:48.8]} 21. Rhe1 {[%clk 0:02:30]} 21... Re8 {[%clk 0:01:47]} 22. Bc4 {[%clk
0:02:28.2]} 22... d5 {[%clk 0:01:47.2]} 23. Bb3 {[%clk 0:02:23.9]} 23... a5
{[%clk 0:01:16.7]} 24. g4 {[%clk 0:02:20.1]} 24... a4 {[%clk 0:01:12.7]} 25. Ba2
{[%clk 0:02:16.5]} 25... Qc8 {[%clk 0:01:12.9]} 26. Bxd5 {[%clk 0:02:15.9]}
26... Bxd5 {[%clk 0:01:12.7]} 27. Qxd5 {[%clk 0:02:16.8]} 27... c6 {[%clk
0:01:08.4]} 28. Qd8 {[%clk 0:02:13.8]} 1-0

[Event "Early-Titled-Tuesday-Blitz-September-12-2023"]
[Site "Chess.com"]
[Date "2023.09.12"]
[Round "10"]
[White "Bastiandash"]
[Black "Jackalhead_Anubis"]
[Result "0-1"]
[WhiteElo "2537"]
[BlackElo "2423"]
[TimeControl "180+1"]
[EndTime "9:52:58 PDT"]
[Termination "Jackalhead_Anubis won by resignation"]

1. d4 {[%clk 0:03:00.9]} 1... Nf6 {[%clk 0:02:58.3]} 2. Bg5 {[%clk 0:03:00.7]}
2... d5 {[%clk 0:02:56.3]} 3. e3 {[%clk 0:03:00.6]} 3... Bf5 {[%clk 0:02:52.8]}
4. Bxf6 {[%clk 0:02:38.4]} 4... exf6 {[%clk 0:02:51.6]} 5. c4 {[%clk 0:02:38.1]}
5... dxc4 {[%clk 0:02:49.9]} 6. Nc3 {[%clk 0:02:34.6]} 6... c6 {[%clk
0:02:49.1]} 7. Bxc4 {[%clk 0:02:33]} 7... Bd6 {[%clk 0:02:47.6]} 8. Nge2 {[%clk
0:02:29.9]} 8... Qc7 {[%clk 0:02:44.9]} 9. Ng3 {[%clk 0:02:29.9]} 9... Bd7
{[%clk 0:02:42]} 10. Qf3 {[%clk 0:02:26.5]} 10... O-O {[%clk 0:02:40.6]} 11. Rc1
{[%clk 0:02:17]} 11... Qb6 {[%clk 0:02:40]} 12. Rc2 {[%clk 0:02:09.5]} 12... Qb4
{[%clk 0:02:36.9]} 13. Bd3 {[%clk 0:02:08.7]} 13... Na6 {[%clk 0:02:26.3]} 14.
O-O {[%clk 0:02:06]} 14... Qa5 {[%clk 0:02:25.2]} 15. a3 {[%clk 0:02:05.4]}
15... Rfe8 {[%clk 0:02:10.4]} 16. Nh5 {[%clk 0:01:49.5]} 16... Qg5 {[%clk
0:01:57.5]} 17. Ne4 {[%clk 0:01:44.7]} 17... Rxe4 {[%clk 0:01:54.7]} 18. Qxe4
{[%clk 0:01:20.3]} 18... Qxh5 {[%clk 0:01:53.4]} 19. f4 {[%clk 0:01:17.2]} 19...
Re8 {[%clk 0:01:41.4]} 20. Qf3 {[%clk 0:01:15.9]} 20... Qxf3 {[%clk 0:01:37.1]}
21. Rxf3 {[%clk 0:01:16.8]} 21... Nc7 {[%clk 0:01:37.6]} 22. e4 {[%clk
0:01:14.5]} 22... Ne6 {[%clk 0:01:36.7]} 0-1

[Event "Early-Titled-Tuesday-Blitz-September-12-2023"]
[Site "Chess.com"]
[Date "2023.09.12"]
[Round "10"]
[White "kidagent"]
[Black "ajedrezhoy"]
[Result "1-0"]
[WhiteElo "2236"]
[BlackElo "2375"]
[TimeControl "180+1"]
[EndTime "9:53:02 PDT"]
[Termination "kidagent won by resignation"]

1. e4 {[%clk 0:02:20.9]} 1... Nf6 {[%clk 0:02:58.4]} 2. e5 {[%clk 0:02:16.3]}
2... Nd5 {[%clk 0:02:57.4]} 3. d4 {[%clk 0:02:17.2]} 3... d6 {[%clk 0:02:56.9]}
4. Nf3 {[%clk 0:02:17.9]} 4... g6 {[%clk 0:02:56.2]} 5. Bc4 {[%clk 0:02:16.5]}
5... Nb6 {[%clk 0:02:55.6]} 6. Bb3 {[%clk 0:02:17.1]} 6... Bg7 {[%clk
0:02:55.9]} 7. O-O {[%clk 0:02:16.3]} 7... O-O {[%clk 0:02:55.9]} 8. Nc3 {[%clk
0:02:15.4]} 8... Nc6 {[%clk 0:02:53.5]} 9. Bf4 {[%clk 0:02:11.6]} 9... Bg4
{[%clk 0:02:51.6]} 10. exd6 {[%clk 0:02:06.8]} 10... cxd6 {[%clk 0:02:50.9]} 11.
d5 {[%clk 0:02:05.7]} 11... Ne5 {[%clk 0:02:49.8]} 12. Bxe5 {[%clk 0:02:05.1]}
12... Bxe5 {[%clk 0:02:49.2]} 13. h3 {[%clk 0:02:01.6]} 13... Bxc3 {[%clk
0:02:44.6]} 14. bxc3 {[%clk 0:01:53.8]} 14... Bxf3 {[%clk 0:02:44.4]} 15. Qxf3
{[%clk 0:01:53.1]} 15... Rc8 {[%clk 0:02:40.8]} 16. Rfe1 {[%clk 0:01:53.1]}
16... Nd7 {[%clk 0:02:38.2]} 17. Qe3 {[%clk 0:01:47.9]} 17... Re8 {[%clk
0:02:36.7]} 18. Qxa7 {[%clk 0:01:42.4]} 18... Nc5 {[%clk 0:02:23.5]} 19. Qa3
{[%clk 0:01:36.3]} 19... Qd7 {[%clk 0:02:08.6]} 20. Qb4 {[%clk 0:01:35.1]} 20...
Qf5 {[%clk 0:02:07.1]} 21. Re2 {[%clk 0:01:25]} 21... Rc7 {[%clk 0:02:05.9]} 22.
Rae1 {[%clk 0:01:22.1]} 22... Qf6 {[%clk 0:02:06]} 23. Ba4 {[%clk 0:01:18.6]}
23... Rec8 {[%clk 0:02:05.6]} 24. Bb5 {[%clk 0:01:16.5]} 24... Kf8 {[%clk
0:02:03.1]} 25. c4 {[%clk 0:01:15.1]} 25... Nd7 {[%clk 0:01:52.7]} 26. Rxe7
{[%clk 0:01:08.6]} 26... Ne5 {[%clk 0:01:48.1]} 27. R7xe5 {[%clk 0:01:05.2]} 1-0

[Event "Early-Titled-Tuesday-Blitz-September-12-2023"]
[Site "Chess.com"]
[Date "2023.09.12"]
[Round "10"]
[White "Artemiki"]
[Black "nitpicker"]
[Result "1-0"]
[WhiteElo "2162"]
[BlackElo "2248"]
[TimeControl "180+1"]
[EndTime "9:53:14 PDT"]
[Termination "Artemiki won by checkmate"]

1. e4 {[%clk 0:02:54.7]} 1... c5 {[%clk 0:03:00]} 2. Nf3 {[%clk 0:02:52.8]} 2...
d6 {[%clk 0:03:00.1]} 3. d4 {[%clk 0:02:46.2]} 3... cxd4 {[%clk 0:03:00.1]} 4.
Nxd4 {[%clk 0:02:45.5]} 4... Nf6 {[%clk 0:02:59.6]} 5. Nc3 {[%clk 0:02:45.3]}
5... Nc6 {[%clk 0:02:59.7]} 6. f3 {[%clk 0:02:41.7]} 6... Qb6 {[%clk 0:02:48]}
7. Be3 {[%clk 0:02:40.1]} 7... Qxb2 {[%clk 0:02:35.7]} 8. Ncb5 {[%clk
0:02:39.3]} 8... Qb4+ {[%clk 0:02:34.6]} 9. Bd2 {[%clk 0:02:38.7]} 9... Qc5
{[%clk 0:02:32.3]} 10. Nc7+ {[%clk 0:02:38.6]} 10... Kd8 {[%clk 0:02:19.3]} 11.
Nb3 {[%clk 0:02:38.6]} 11... Qe5 {[%clk 0:02:11.4]} 12. Nxa8 {[%clk 0:02:37.3]}
12... b6 {[%clk 0:02:10.3]} 13. Bd3 {[%clk 0:02:12.4]} 13... Bb7 {[%clk
0:02:09.6]} 14. Nxb6 {[%clk 0:02:12.4]} 14... axb6 {[%clk 0:02:09]} 15. O-O
{[%clk 0:02:12.9]} 15... g5 {[%clk 0:02:07.7]} 16. a4 {[%clk 0:02:03.8]} 16...
Bg7 {[%clk 0:02:00.6]} 17. a5 {[%clk 0:01:59.8]} 17... bxa5 {[%clk 0:01:50.2]}
18. Nxa5 {[%clk 0:01:42]} 18... Nxa5 {[%clk 0:01:47.5]} 19. Rxa5 {[%clk
0:01:42.2]} 19... Qd4+ {[%clk 0:01:46.1]} 20. Kh1 {[%clk 0:01:42.5]} 20... h6
{[%clk 0:01:37.9]} 21. Qb1 {[%clk 0:01:41.8]} 21... Bc8 {[%clk 0:01:28.7]} 22.
Ra8 {[%clk 0:01:31.4]} 22... Kd7 {[%clk 0:01:03]} 23. Qb5+ {[%clk 0:01:25.2]}
23... Ke6 {[%clk 0:01:00.1]} 24. Qf5# {[%clk 0:01:24.1]} 1-0

[Event "Early-Titled-Tuesday-Blitz-September-12-2023"]
[Site "Chess.com"]
[Date "2023.09.12"]
[Round "10"]
[White "inagreV"]
[Black "DvaHrasta"]
[Result "0-1"]
[WhiteElo "2279"]
[BlackElo "2486"]
[TimeControl "180+1"]
[EndTime "9:53:42 PDT"]
[Termination "DvaHrasta won by resignation"]

1. e4 {[%clk 0:03:00.9]} 1... c6 {[%clk 0:02:58]} 2. d4 {[%clk 0:03:00.7]} 2...
d5 {[%clk 0:02:58]} 3. Nc3 {[%clk 0:03:01.3]} 3... dxe4 {[%clk 0:02:58.1]} 4.
Nxe4 {[%clk 0:03:02.2]} 4... Bf5 {[%clk 0:02:58]} 5. Ng3 {[%clk 0:03:02.6]} 5...
Bg6 {[%clk 0:02:58.2]} 6. h4 {[%clk 0:03:03.2]} 6... h6 {[%clk 0:02:57.8]} 7.
Nf3 {[%clk 0:03:03.7]} 7... Nd7 {[%clk 0:02:57.1]} 8. Bd3 {[%clk 0:03:03.8]}
8... Bxd3 {[%clk 0:02:55.6]} 9. Qxd3 {[%clk 0:03:04.7]} 9... Ngf6 {[%clk
0:02:55.1]} 10. Bf4 {[%clk 0:03:04.5]} 10... Qa5+ {[%clk 0:02:51.4]} 11. Bd2
{[%clk 0:03:04.5]} 11... Qa6 {[%clk 0:02:49.8]} 12. Qxa6 {[%clk 0:03:02]} 12...
bxa6 {[%clk 0:02:50]} 13. O-O-O {[%clk 0:02:56.9]} 13... e6 {[%clk 0:02:49.3]}
14. Bf4 {[%clk 0:02:55.5]} 14... Nd5 {[%clk 0:02:47.2]} 15. Bd2 {[%clk
0:02:50.8]} 15... c5 {[%clk 0:02:46.4]} 16. c4 {[%clk 0:02:47.4]} 16... N5b6
{[%clk 0:02:43.8]} 17. b3 {[%clk 0:02:45.8]} 17... cxd4 {[%clk 0:02:36.1]} 18.
Nxd4 {[%clk 0:02:45.7]} 18... Bc5 {[%clk 0:02:35.8]} 19. Bc3 {[%clk 0:02:43.2]}
19... O-O-O {[%clk 0:02:25.8]} 20. Ne4 {[%clk 0:02:42.2]} 20... f5 {[%clk
0:02:12.6]} 21. Nd2 {[%clk 0:02:31]} 21... Bxd4 {[%clk 0:02:08.6]} 22. Bxd4
{[%clk 0:02:31]} 22... e5 {[%clk 0:02:05.6]} 23. Bc3 {[%clk 0:02:31.2]} 23...
Nc5 {[%clk 0:02:03.3]} 24. Nf3 {[%clk 0:02:27.6]} 24... Nd3+ {[%clk 0:02:00.4]}
25. Kc2 {[%clk 0:02:25.8]} 25... e4 {[%clk 0:01:57.6]} 26. Ne5 {[%clk
0:02:21.4]} 26... Nxf2 {[%clk 0:01:49.4]} 27. Rxd8+ {[%clk 0:02:20.9]} 27...
Rxd8 {[%clk 0:01:48.6]} 28. Re1 {[%clk 0:02:12.1]} 28... Nd7 {[%clk 0:01:33.6]}
29. Nc6 {[%clk 0:02:12]} 29... Re8 {[%clk 0:01:28.1]} 30. Bd4 {[%clk 0:02:05.3]}
30... Nd3 {[%clk 0:01:24]} 31. Rf1 {[%clk 0:02:05.5]} 31... g6 {[%clk
0:01:19.9]} 32. h5 {[%clk 0:02:05.9]} 32... Re6 {[%clk 0:01:08.3]} 33. Nxa7+
{[%clk 0:01:45.8]} 33... Kb7 {[%clk 0:01:07.2]} 34. g4 {[%clk 0:01:39.2]} 34...
f4 {[%clk 0:00:54.6]} 35. g5 {[%clk 0:01:39.3]} 35... gxh5 {[%clk 0:00:50.2]}
0-1